Cogmind - Beta 14 @@@ ROGUE MODE // 2025.01.17 @ 12:30:32 Player: K.Ioz Result: Destroyed by EX-DEC with AWS/EX-DEC Performance ------------- Evolutions (1) 500 Regions Visited (5) 1000 Robots Destroyed (79) 395 Value Destroyed (1812) 1812 Prototype IDs (31) 620 Alien Tech Used (0) 0 Bonus (465) 465 TOTAL SCORE: 4792 Bonus ------- High Alert Combat Kills 105 Follower Combat Kills 60 Aligned with FarCom 300 Cogmind --------- Core Integrity 0/400 Matter 254/300 Energy 274/280 System Corruption 2% Temperature Cool (1) Movement Rolling (105) Ox1 Location -9/Exiles Parts ------- > --- POWER (1) -------- Heavy Ion Engine > --- PROPULSION (3) --- Advanced Myomer Leg Armored Wheel > --- UTILITY (2) ------ Cooling System Experimental Targeting Computer > --- WEAPON (3) ------- Improved Medium Laser Improved Medium Laser Heavy Assault Rifle > --- INVENTORY (5) ---- Large Storage Unit Mini Grenade Launcher Field Lobotomy Kit (2) Peak State ------------ > --- POWER ------------ Heavy Ion Engine > --- PROPULSION ------- Advanced Myomer Leg Armored Wheel > --- UTILITY ---------- Cooling System Experimental Targeting Computer > --- WEAPON ----------- Improved Medium Laser Improved Medium Laser Field Lobotomy Kit > --- INVENTORY -------- Large Storage Unit Heavy Assault Rifle Mini Grenade Launcher [Rating: 37] Favorites ----------- Power Light Nuclear Core Engine Heavy Ion Engine Power Core Light Nuclear Core Propulsion Light Treads Treads Light Treads Leg Advanced Myomer Leg Wheel Armored Wheel Utility Large Storage Unit Device Improved Heat Sink Storage Large Storage Unit Processor Targeting Computer Protection Medium Armor Plating Weapon Medium Laser Energy Gun Medium Laser Energy Cannon Beam Cannon Ballistic Gun Assault Rifle Ballistic Cannon Improved Light Cannon Launcher Mini Grenade Launcher Special Weapon Field Lobotomy Kit Build | -11 -10 -10 -9 -9 -9 ------- Run | Yrd Mat Min Mat Min Exi Slots Evolved 2 | . . . 2 . . Power . | . . . . . . Propulsion 1 | . . . 1 . . Utility . | . . . . . . Weapon 1 | . . . 1 . . Parts Attached 78 | 6 7 2 38 . 25 Power 6 | 1 1 1 2 . 1 Engine 5 | 1 1 . 2 . 1 Core 1 | . . 1 . . . Reactor . | . . . . . . Propulsion 22 | 2 1 . 14 . 5 Treads 20 | 2 1 . 14 . 3 Leg 1 | . . . . . 1 Wheel 1 | . . . . . 1 Hover . | . . . . . . Flight . | . . . . . . Utility 11 | 1 3 1 2 . 4 Device 4 | . 1 1 1 . 1 Storage 3 | 1 1 . 1 . . Processor 2 | . 1 . . . 1 Hackware . | . . . . . . Protection 2 | . . . . . 2 Artifact . | . . . . . . Weapon 39 | 2 2 . 20 . 15 Energy Gun 14 | 2 1 . 9 . 2 Energy Cannon 1 | . . . 1 . . Ballistic Gun 16 | . 1 . 7 . 8 Ballistic Cannon 1 | . . . . . 1 Launcher 4 | . . . 3 . 1 Special Weapon 3 | . . . . . 3 Impact Weapon . | . . . . . . Slashing Weapon . | . . . . . . Piercing Weapon . | . . . . . . Special Melee Weapon . | . . . . . . Unidentified Prototypes 4 | . . . 2 . 2 Parts Lost 21 | . 3 . 4 . 14 Power 1 | . . . . . 1 Propulsion 9 | . 1 . 2 . 6 Utility 2 | . . . . . 2 Weapon 9 | . 2 . 2 . 5 Highest Loss Streak 14 | . 1 . 1 . 14 To Critical Strikes 10 | . . . . . 10 Average Slot Usage (%) 95 | . 97 99 99 100 69 Engine 6 | . 14 . 10 11 10 Core 6 | . . 13 . . . Treads 29 | . 27 28 32 33 29 Device 11 | . 8 14 11 11 4 Storage 12 | . 14 14 11 11 8 Energy Gun 14 | . 22 14 18 22 3 Ballistic Gun 10 | . 4 14 11 11 5 Peak Build Rating 37 | 6 8 12 18 18 37 Average Rating 12 | 4 7 11 15 18 13 On Entrance 10 | . 6 8 12 18 18 Naked Turns . | . . . . . . Heaviest Build 44 | 12 30 30 39 37 44 Greatest Support 60 | 40 40 40 60 60 60 Greatest Overweight (x) 5 | . . . 1 . 5 Average Overweight (x) . | . . . . . . Largest Inventory Capacity 15 | 8 15 15 15 15 15 Average Capacity 14 | 7 10 15 15 15 12 Most Carried 15 | 4 11 15 15 15 15 Average Carried 11 | 2 8 12 14 15 8 Final Capacity 15 | 8 15 15 15 15 5 Final Carried 15 | 4 10 15 15 15 3 Class Distribution -------------------- 70% | Mutant 25% | Scavenger-Gunner Dominant Class ---------------- Mutant | -10/Materials Mutant | -10/Mines Scavenger-Gunner | -9/Materials Scavenger-Gunner | -9/Mines Mutant | -9/Exiles Resources | -11 -10 -10 -9 -9 -9 ----------- Run | Yrd Mat Min Mat Min Exi Matter Collected 1950 | 260 456 64 568 58 544 Remotely . | . . . . . . Salvage Created 2693 | . 783 110 1667 . 133 Parts 171 | . 42 6 121 . 2 Haulers Intercepted 7 | . 2 . 5 . . Recyclers Shooed 1 | . . . 1 . . Parts Field Recycled . | . . . . . . Retrieved Matter . | . . . . . . Parts Self-Destructed . | . . . . . . Prevented . | . . . . . . Kills | -11 -10 -10 -9 -9 -9 ------- Run | Yrd Mat Min Mat Min Exi Combat Hostiles Destroyed 64 | . 16 4 38 . 6 Guns 46 | . 12 4 28 . 2 Cannons 7 | . . . 7 . . AOE 10 | . 4 . 2 . 4 Classes Destroyed 10 | . 7 . 2 . 1 Worker 3 | . 2 . 1 . . Builder 2 | . 1 . 1 . . Hauler 7 | . 2 . 5 . . Recycler 1 | . . . 1 . . Operator 2 | . 1 . 1 . . Watcher 5 | . 1 . 4 . . Swarmer 21 | . 3 2 16 . . Grunt 27 | . 13 2 12 . . Sentry 10 | . . . 10 . . Assembled 5 | . . . . . 5 Best Kill Streak 6 | . 3 2 6 . 5 Combat Bots Only 5 | . 3 2 5 . 5 Max Kills in Single Turn 4 | . 2 1 2 . 4 Gunslinging 1 | . . . 1 . . Exploded 4 | . 2 . 2 . 4 Melee . | . . . . . . Uniques/NPCs Destroyed 1 | . . . . . 1 8R-AWN (-9/Exiles) Combat | -11 -10 -10 -9 -9 -9 -------- Run | Yrd Mat Min Mat Min Exi Hostile Shots Fired 358 | . 68 17 154 1 118 Missed 81 | . 18 6 37 . 20 Damage Taken 3965 | . 691 128 1293 10 1843 Core 539 | . 135 . 105 . 299 Absorbed by Shields . | . . . . . . Regen/Repaired (Parts) 164 | . . . 164 . . Core Remaining (%) 73 | 100 . 46 . . . Volleys Fired 244 | . 64 12 106 . 62 Largest 3 | . 2 2 3 . 3 Hottest 165 | . 90 70 165 . 135 Shots Fired 597 | . 121 24 307 . 145 Gun 552 | . 121 24 270 . 137 Cannon 37 | . . . 33 . 4 Launcher 5 | . . . 4 . 1 Special 3 | . . . . . 3 Kinetic 254 | . 18 12 117 . 107 Thermal 296 | . 64 12 186 . 34 Explosive 5 | . . . 4 . 1 Electromagnetic 39 | . 39 . . . . Robot Hit Streak 18 | . 14 9 18 . 12 Robot Miss Streak 5 | . 4 3 5 . 3 Penetration Max . | . . . . . . Secondary Targets 6 | . 1 . 5 . . Max Gunslinging Chain 1 | . 1 . 1 . . Shots Hit Robots 374 | . 82 17 184 . 91 Core Hits 142 | . 40 6 74 . 22 Critical Kills 1 | . . 1 . . . Critical Parts Destroyed . | . . . . . . Critical Strikes 14 | . 4 1 9 . . Burn 13 | . 4 . 9 . . Destroy 1 | . . 1 . . . Melee Attacks . | . . . . . . Impact . | . . . . . . Slashing . | . . . . . . Piercing . | . . . . . . Sneak Attacks . | . . . . . . Combat Hostiles . | . . . . . . Follow-up Attacks . | . . . . . . Damage Inflicted 5853 | . 1372 216 2724 . 1541 Guns 4778 | . 1113 216 2185 . 1264 Cannons 466 | . . . 403 . 63 Explosions 606 | . 259 . 133 . 214 Melee . | . . . . . . Ramming 3 | . . . 3 . . Kinetic 2034 | . 181 131 795 . 927 Thermal 3137 | . 859 85 1793 . 400 Explosive 347 | . . . 133 . 214 Electromagnetic 332 | . 332 . . . . Impact . | . . . . . . Slashing . | . . . . . . Piercing . | . . . . . . Highest Corruption 2 | . . . 1 1 2 Average Corruption 1 | . . . 1 1 1 Corruption Purged . | . . . . . . Corruption Blocked . | . . . . . . Effects 21 | . . . 5 5 11 Message Errors 5 | . . . 2 2 1 Matter Fused 2 | . . . . . 2 Heat Flow Errors 2 | . . . . 1 1 Energy Discharges 4 | . . . . 1 3 Data Loss (minor) 3 | . . . 2 . 1 Data Loss (major) 1 | . . . . . 1 Alerts 2 | . . . . 1 1 Weapon Failures 2 | . . . 1 . 1 Overload Shots . | . . . . . . Overflow Damage 1 | . . . 1 . . Projectiles 1 | . . . 1 . . Explosions . | . . . . . . Melee . | . . . . . . Knockbacks . | . . . . . . Impact . | . . . . . . Kinetic . | . . . . . . Secondary . | . . . . . . Self-Inflicted Damage 138 | . 89 . . . 49 Shots 3 | . 2 . . . 1 Rammed 1 | . . . 1 . . Targets Rammed 1 | . . . 1 . . Kicked . | . . . . . . Crushed . | . . . . . . Highest Temperature 240 | . 240 2 174 72 184 Average Temperature 45 | . 59 2 34 51 55 Received Heat Transfer 753 | . 318 54 375 6 . Siege Activations . | . . . . . . Robots Corrupted . | . . . . . . Combat Hostiles . | . . . . . . Parts Fried . | . . . . . . Impact Corruptions . | . . . . . . Robots Melted 1 | . . . 1 . . Combat Hostiles 1 | . . . 1 . . Parts Melted 15 | . 1 . 14 . . Heat Transferred 8060 | . 2322 259 5020 . 459 Parts Sabotaged . | . . . . . . Parts Stolen . | . . . . . . Parts Stripped . | . . . . . . Power Chain Reactions 4 | . 4 . . . . Alert | -11 -10 -10 -9 -9 -9 ------- Run | Yrd Mat Min Mat Min Exi Peak Influence 636 | . 254 117 636 300 . Initial 247 | . . 52 10 247 . Average 131 | . 106 16 370 267 . Maximum Alert Level 2 | . 1 . 2 1 . Low Security (%) 70 | 100 84 100 10 . . Level 1 19 | . 15 . 49 100 . Level 2 10 | . . . 40 . . Level 3 . | . . . . . . Level 4 . | . . . . . . Level 5 . | . . . . . . High Security . | . . . . . . Max Security . | . . . . . . Squads Dispatched 9 | . 3 . 5 1 . Investigation 3 | . 1 . 2 . . Extermination . | . . . . . . Reinforcement 5 | . 2 . 3 . . Assault 1 | . . . . 1 . Garrison . | . . . . . . Intercept . | . . . . . . Searches Triggered . | . . . . . . Construction Impeded . | . . . . . . Haulers Reinforced . | . . . . . . Active Scanning Responses . | . . . . . . Cargo Convoy Interrupts . | . . . . . . Stealth | -11 -10 -10 -9 -9 -9 --------- Run | Yrd Mat Min Mat Min Exi Distress Signals 12 | . 4 3 5 . . Communications Jammed . | . . . . . . Distress Signals . | . . . . . . Times Spotted 112 | . 33 4 60 2 13 Peak Tracking Total 9 | . 4 2 7 2 9 Tactical Retreats 7 | . 1 . 5 . 1 Traps | -11 -10 -10 -9 -9 -9 ------- Run | Yrd Mat Min Mat Min Exi Traps Triggered 3 | . 1 . 2 . . Indirectly . | . . . . . . Trap Hack Attempts . | . . . . . . Triggered . | . . . . . . Disarmed . | . . . . . . Reprogrammed . | . . . . . . Reused . | . . . . . . Traps Extracted . | . . . . . . Installed . | . . . . . . Triggered . | . . . . . . Machines | -11 -10 -10 -9 -9 -9 ---------- Run | Yrd Mat Min Mat Min Exi Machines Disabled 9 | . . . 1 . 8 Max in Single Turn 2 | . . . 1 . 2 Machines Repaired . | . . . . . . Machines Dismantled . | . . . . . . Machines Sabotaged . | . . . . . . Overloaded Fab Kills . | . . . . . . Hacking | -11 -10 -10 -9 -9 -9 --------- Run | Yrd Mat Min Mat Min Exi Machines Accessed 18 | . 6 . 11 . 1 Terminals 15 | . 6 . 9 . . Fabricators . | . . . . . . Repair Stations 2 | . . . 2 . . Recycling Units . | . . . . . . Scanalyzers . | . . . . . . Garrison Access . | . . . . . . Total Hacks 58 | . 19 . 38 . 1 Successful 29 | . 8 . 20 . 1 Failed 29 | . 11 . 18 . . Catastrophic 2 | . 1 . 1 . . Database Lockouts . | . . . . . . Manual 28 | . 14 . 13 . 1 Terminals 50 | . 19 . 31 . . Fabricators . | . . . . . . Repair Stations 7 | . . . 7 . . Recycling Units . | . . . . . . Scanalyzers . | . . . . . . Garrison Access . | . . . . . . Terminal Hacks 12 | . 2 . 9 . 1 Robot Analysis 1 | . . . 1 . . Prototype ID Bank 2 | . 1 . 1 . . Unreport Threat 1 | . . . 1 . . Locate Traps 6 | . 1 . 5 . . Hauler Manifests 1 | . . . 1 . . Derelict Proto ID Bank 1 | . . . . . 1 Fabricator Hacks . | . . . . . . Repair Station Hacks 4 | . . . 4 . . Scan Component 2 | . . . 2 . . Repair 2 | . . . 2 . . Recycling Unit Hacks . | . . . . . . Scanalyzer . | . . . . . . Garrison Access Hacks . | . . . . . . Unauthorized Hacks 13 | . 6 . 7 . . Terminals 13 | . 6 . 7 . . Botnet 1 | . . . 1 . . Operators 1 | . 1 . . . . Skim 11 | . 5 . 6 . . Fabricators . | . . . . . . Repair Stations . | . . . . . . Recycling Units . | . . . . . . Scanalyzers . | . . . . . . Garrison Access . | . . . . . . Data Cores Recovered . | . . . . . . Used . | . . . . . . Hacking Detections 16 | . 6 . 10 . . Full Trace Events 4 | . 1 . 3 . . Feedback Events 1 | . . . 1 . . Corruption 1 | . . . 1 . . Feedback Blocked . | . . . . . . Robot Schematics Acquired . | . . . . . . Robots Built . | . . . . . . Authchips . | . . . . . . Time . | . . . . . . Total Robot Build Rating . | . . . . . . Part Schematics Acquired . | . . . . . . Parts Built . | . . . . . . Authchips . | . . . . . . Time . | . . . . . . Total Part Build Rating . | . . . . . . Parts Repaired 2 | . . . 2 . . Time 52 | . . . 52 . . Parts Recycled . | . . . . . . Recycled Matter . | . . . . . . Retrieved Matter . | . . . . . . Retrieved Components . | . . . . . . Parts Scanalyzed . | . . . . . . Part Schematics Acquired . | . . . . . . Parts Damaged . | . . . . . . Bothacking | -11 -10 -10 -9 -9 -9 ------------ Run | Yrd Mat Min Mat Min Exi Used RIF Installer . | . . . . . . Robots Hacked . | . . . . . . Non-combat . | . . . . . . Combat . | . . . . . . Robot Hacks Applied . | . . . . . . Relay Couplers Released . | . . . . . . Fabnet Peak Effective % . | . . . . . . Robots Rewired . | . . . . . . Allies Hacked . | . . . . . . Hacks Repelled . | . . . . . . Allies | -11 -10 -10 -9 -9 -9 -------- Run | Yrd Mat Min Mat Min Exi Total Allies 2 | . . . . 1 1 Largest Group 1 | . . . . 1 1 Highest-Rated Group 36 | . . . . 31 36 Highest-Rated Ally 36 | . . . . 31 36 Total Orders . | . . . . . . Ally Attacks 15 | . . . . 5 10 Total Damage 340 | . . . . 105 235 Kills 8 | . . . . 2 6 Allies Corrupted . | . . . . . . Allies Melted . | . . . . . . Field Lobotomies 1 | . . . . . 1 Intel | -11 -10 -10 -9 -9 -9 ------- Run | Yrd Mat Min Mat Min Exi Robot Analysis Total 1 | . . . 1 . . Derelict Logs Recovered 3 | . . 1 . 2 . Drone Launches . | . . . . . . Drone Recoveries . | . . . . . . Exploration | -11 -10 -10 -9 -9 -9 ------------- Run | Yrd Mat Min Mat Min Exi Turns Passed 11946 | 98 1655 5434 2654 387 1718 Spaces Moved 3954 | 55 760 747 1198 239 955 Core 4 | 2 . . . . 2 Treads 3838 | 53 760 747 1198 239 841 Legs 5 | . . . . . 5 Wheels 107 | . . . . . 107 Hover . | . . . . . . Flight . | . . . . . . Fastest Speed 50 | 50 160 160 160 160 105 Average Speed 158 | 156 160 160 160 160 153 Slowest Speed 300 | 160 160 160 240 160 300 Overloaded Moves . | . . . . . . Propulsion Burnouts . | . . . . . . Robots Hopped . | . . . . . . Cave-ins Triggered . | . . . . . . Exploration Rate (%) 69 | 4 97 99 94 46 78 Regions Visited 5 Branch Regions 3 Pre-discovered Areas 3 | . . 1 2 . . Known Exits Taken 1 | . . . . 1 . Unknown Exits Taken 4 | 1 1 1 1 . . Scrap Searched 2 | . . 1 . 1 . Spaces Dug . | . . . . . . Terrain Destroyed 44 | . 16 . 18 . 10 Melee . | . . . . . . Projectile . | . . . . . . AOE 44 | . 16 . 18 . 10 Terrain Rammed . | . . . . . . Walls Destroyed . | . . . . . . Machines Disabled . | . . . . . . Actions | -11 -10 -10 -9 -9 -9 --------- Run | Yrd Mat Min Mat Min Exi Total 9164 | 64 1079 4961 1716 244 1100 Wait 4790 | . 234 4197 326 6 27 Move 3949 | 54 759 746 1197 238 955 Hop . | . . . . . . Pick Up 41 | 4 10 3 16 . 8 Fast Attach 45 | 6 3 1 18 . 17 Attach 8 | . 2 . 5 . 1 Detach 2 | . 1 1 . . . Swap 25 | . 2 1 15 . 7 Drop 59 | . 4 . 32 . 23 Fire 244 | . 64 12 106 . 62 Melee . | . . . . . . Ram . | . . . . . . Kick . | . . . . . . Crush 1 | . . . 1 . . Escape Stasis . | . . . . . . Rewire . | . . . . . . Trap . | . . . . . . Miscellaneous . | . . . . . . Route ------- -11/Scrapyard -10/Materials (discovered 5 exits: *Mat x3 / [*Min x2]) -10/Mines (discovered 2 exits: *Mat x2) -9/Materials (discovered 5 exits: [*Mat x3] / [*Min x2]) -9/Mines (discovered 2 exits: *Exi / [*Zio]) -9/Exiles History --------- Turn | Location | Event 10 | -11/Scrapyard | Discovered new exit (range 15) 99 | -11/Scrapyard | Entered Materials 230 | -10/Materials | Discovered new exit (range 8) 300 | -10/Materials | Build established: Mutant 341 | -10/Materials | Discovered new exit (range 3) 755 | -10/Materials | Discovered new exit (range 13) 765 | -10/Materials | Discovered new exit (range 10) 1037 | -10/Materials | Discovered new exit (range 16) 1709 | -10/Materials | Core integrity fell below 50% 1754 | -10/Materials | Entered Mines 1800 | -10/Mines | Assembled infested the area 1805 | -10/Mines | Assisted by a Guerilla fighting off Assembled 6367 | -10/Mines | Learned Materials stockpile data 6502 | -10/Mines | Discovered new exit (range 3) 6541 | -10/Mines | Learned location of Storage (-7) 6542 | -10/Mines | Discovered new exit (range 8) 7188 | -10/Mines | Entered Materials 7188 | -9/Materials | Evolved 2 slots: Propulsion x1, Weapon x1 7647 | -9/Materials | Build established: Scavenger-Gunner 7792 | -9/Materials | Discovered new exit (range 16) 8326 | -9/Materials | Repaired Lgt. Treads 8524 | -9/Materials | Learned Storage trap positions 8584 | -9/Materials | Learned location of Mines (-8) 8612 | -9/Materials | Discovered new exit (range 16) 8633 | -9/Materials | Learned location of 1 exit from Recycling 8673 | -9/Materials | Learned location of 1 exit from Recycling 8720 | -9/Materials | Learned 4 Recycling zone layouts 8749 | -9/Materials | Learned location of 1 exit from Storage 9075 | -9/Materials | Discovered new exit (range 7) 9268 | -9/Materials | Discovered new exit (range 13) 9499 | -9/Materials | Repaired Lgt. Treads 9612 | -9/Materials | Discovered new exit (range 9) 9842 | -9/Materials | Entered Mines 9863 | -9/Mines | Learned Materials terminal intel 9871 | -9/Mines | Met a Derelict testing a Signal Generator 10007 | -9/Mines | A Derelict revealed a hidden shortcut to a safe place 10023 | -9/Mines | Identified exit to Exiles 10220 | -9/Mines | Deemed a non-threat by the Exiles lab entrance 10229 | -9/Mines | Entered Exiles 10229 | -9/Exiles | Accompanied by 1 ally 10271 | -9/Exiles | Met 8R-AWN 10298 | -9/Exiles | Met EX-HEX 10346 | -9/Exiles | Met EX-BIN 10389 | -9/Exiles | Aligned with FarCom system 10391 | -9/Exiles | Given EX-Vault access code 10428 | -9/Exiles | Opened EX-Vault 10469 | -9/Exiles | Warned to stay clear of 0b10 Research branches 10516 | -9/Exiles | Met EX-DEC 10561 | -9/Exiles | Build established: Mutant 10792 | -9/Exiles | Found Field Lobotomy Kit 11528 | -9/Exiles | Attacked by the Exiles 11741 | -9/Exiles | Core integrity fell below 50% 11780 | -9/Exiles | Core integrity fell below 20% 11785 | -9/Exiles | Destroyed 8R-AWN 11804 | -9/Exiles | Found Prototype Processor 11804 | -9/Exiles | Identified Exp. Targeting Computer 11810 | -9/Exiles | Lost 14 parts (1p6n2u5w) 11874 | -9/Exiles | Assimilated DAS Turret with FLK Orb 11947 | -9/Exiles | Destroyed by EX-DEC with AWS/EX-DEC Last Messages --------------- 11802_ Acquired 102 matter. 11804_ Acquired Prototype Processor. 11804_ Identified Exp. Targeting Computer. 11807_ Acquired Prototype Leg. 11807_ Identified Adv. Myomer Leg. 11811_ Acquired 9 matter. 11813_ Acquired Hvy. Assault Rifle. 11818_ Acquired 1 matter. 11832_ Extracted 1 energy. 11836_ Extracted 200 matter. 11837_ Extracted 16 matter. 11871_ Field Lobotomy Kit blasted off. 11871_ Knocked back. 11872_ Acquired Field Lobotomy Kit. 11874_ DAS Turret assimilated. 11877_ Acquired 2 matter. 11912_ EX-BIN: "I just want to science!" 11922_ EX-DEC unaffected by assimilation attempt. 11929_ Machine disabled. 11942_ Destroyed EX Chip 1. Map ----- +----------------------------------------------------+ | ???????????????????????## | | ????????????????????????#" " | | ????????????????????????#"""" ""#? | | ????????????????????????#"" ""##?? ? | | ????????????????????????#" """"##????? | | ????????????????????????#""" """#?????? | | ????????????????????????## ""##?????? | | ?????????????????????????#"" """##??????? | | ?????????????????????????##""" ##???????? | | ??????????????????????????##"""" ##????????? | | ???????????????????????????### #?????????? | | ?????????????????????????????##### ##?????????? | | ?????????????????????????????????## #??????????? | | ??????????????????????????????????# #??????????? | | ??????????????????????????????????# #??????????? | | ??????????????????????????????????# #??????????? | | ????????????????????????####??????# #??????????? | | ???????????????????????#""""""????# #??????????? | | ???????????????????????#"""""""#??# #??????????? | | ???????????????????????#" """"#??# #??????????? | | ???????????????????????#"" """#??# #??????????? | | ????????????????????????"" ""???# #??????????? | | ???????????????????#######"""###### ######?????? | | ??????????????????"""""""" """""" """""""#???? | | ????????????"" """ """ c "#???? | | ?????????? @ " ? | | ?????????? " "? | | ?????????? c " "? | | ??????????? "" #""?? | | ???????????"" c """"" " """" """""#???? | | ????????????###"""###""###"""########"""######???? | | ??????????????? ???#""?"" "??????? ""???????? | | ????????????????????#"??""" ""?????? """???????? | | ????????????????????????" " "??????"""""???????? | | ?????????????????????????""""""?????? """????????? | | ?????????????????????????""""""??????????????????? | | ?????????????????????????????????????????????????? | | ?????????????????????????????????????????????????? | | ?????????????????????????????????????????????????? | | ?????????????????????????????????????????????????? | | ?????????????????????????????????????????????????? | | | | | | | | | | | | | | | | | | | +----------------------------------------------------+ Best States ------------- Heat Dissipation 50 Energy Generation 14 Energy Capacity 280 Matter Stores 300 Matter Capacity 300 Sight Range 16 Terrain Scan Density 10 Armor Coverage 375 Evasion (%) 40 Targeting Accuracy 12 Recoil Reduction 3 Item Schematics ----------------- None Robot Schematics ------------------ None Fabricated ------------ Nothing Alien Tech Used ----------------- None Achievements -------------- None Challenges ------------ None Game ------ Seed SpectralRelaySlayer Manual? 0 Play Time 00:49:36 Cumulative 275.0 hours Start 2025.01.17 @ 11:39:15 End 2025.01.17 @ 12:30:32 Sessions 1 Manual Loads 0 Difficulty Rogue Special Mode None Game No. 181 Rogue 142 Adventurer 6 Explorer 33 Win Type - Total 6 Types 5/0/1/0/0/0/0/0/0 Lore% 46 Gallery% 69 Achievement% 65 Wizard Run 0 Options --------- Layout 2 ASCII 1 Keyboard 1 Movement Vi Keybinds 0 Fullscreen 1 Font 16/T_Terminus Map View 53x45 Zoom Use 0% Tactical HUD 1 Map Filters NONE Filters LOW_CONTRAST(47,30,31) Steam 1 RUN: 88b595f2-ec55-4c59-9394-09f1bf04df7e